bitfinex/quotes_SOLUSD_20230112
["timestamp","ask_amount","ask_price","bid_price","bid_amount"]
[1673549288823,20.0,16.505,16.49,54.75164565]
[1673549289132,45.45,16.504,16.49,54.75164565]
[1673549289795,45.45,16.505,16.491,24.74592]
[1673549290103,45.45,16.505,16.492,23.50289104]
[1673549290300,70.29,16.51,16.493,1.92]
[1673549290506,45.42,16.514,16.494,4.74506]
[1673549290704,45.42,16.514,16.495,20.96]
[1673549290921,45.42,16.514,16.496,22.70449]
[1673549291140,45.42,16.514,16.497,24.7442]
[1673549291359,45.42,16.514,16.498,21.74391]
[1673549291568,45.42,16.514,16.499,4.74362]
[1673549291887,45.42,16.514,16.5,17.0]
[1673549292085,20.0,16.513,16.5,21.74334]
[1673549292501,20.0,16.513,16.5,4.74334]
[1673549293454,45.43,16.512,16.5,4.74334]
[1673549293663,45.42,16.513,16.5,4.74334]
[1673549293864,45.42,16.514,16.501,17.0]
[1673549294080,154.8551,16.515,16.501,17.0]
[1673549295023,45.42,16.516,16.502,4.74276]
[1673549295245,45.4,16.522,16.502,43.50001104]
[1673549295564,45.4,16.522,16.503,35.75725104]
[1673549295761,45.4,16.522,16.504,24.74219]
[1673549295762,20.0,16.521,16.504,24.74219]
[1673549295961,45.4,16.52,16.505,17.0]
[1673549296175,45.4,16.52,16.506,20.0]
[1673549296387,45.4,16.52,16.507,17.0]
[1673549296596,45.4,16.52,16.508,20.0]
[1673549296930,45.4,16.52,16.509,17.0]
[1673549297776,20.0,16.519,16.509,17.0]
[1673549297984,45.41,16.518,16.509,17.0]
[1673549298392,45.4,16.52,16.509,17.0]
[1673549299550,20.0,16.519,16.509,17.0]
[1673549300909,45.41,16.518,16.509,17.0]
[1673549301669,20.0,16.517,16.509,17.0]
[1673549301885,65.42,16.516,16.504,4.74219]
[1673549302064,65.42,16.516,16.49,125.21]
[1673549302282,65.42,16.516,16.498,4.74391]
[1673549302595,20.0,16.515,16.498,23.50116104]
[1673549302811,45.42,16.514,16.498,23.50116104]
[1673549303643,20.0,16.513,16.498,23.50116104]
[1673549303863,45.43,16.512,16.499,17.0]
[1673549304088,45.43,16.512,16.498,4.74391]
[1673549304283,45.43,16.512,16.494,20.0]
[1673549304489,45.43,16.512,16.496,18.75725104]
[1673549304721,20.0,16.511,16.496,18.75725104]
[1673549305022,45.43,16.51,16.496,18.75725104]
[1673549305237,45.43,16.51,16.497,20.0]
[1673549305450,20.0,16.509,16.492,20.0]
[1673549305665,45.44,16.508,16.492,20.0]
[1673549306080,45.35755187,16.508,16.492,20.0]
[1673549307023,45.43,16.509,16.493,18.75725104]
[1673549307340,45.43,16.509,16.494,20.0]
[1673549307763,45.43,16.509,16.494,38.75725104]
[1673549307957,45.43,16.509,16.495,17.0]
[1673549308164,45.43,16.509,16.496,20.0]
[1673549308400,45.43,16.512,16.497,17.0]
[1673549308607,45.43,16.512,16.498,20.0]
[1673549308796,45.42,16.513,16.499,17.0]
[1673549309742,45.42,16.513,16.499,35.75725104]
[1673549309958,45.42,16.513,16.499,17.0]
[1673549312153,20.0,16.512,16.499,17.0]
[1673549312372,45.43,16.511,16.499,17.0]
[1673549312685,20.0,16.51,16.499,17.0]
[1673549312904,45.43,16.509,16.499,17.0]
[1673549315329,20.0,16.508,16.499,17.0]
[1673549315537,20.0,16.508,16.481,416.6]
[1673549315538,20.0,16.508,16.481,20.0]
[1673549315748,65.44,16.507,16.494,18.75725104]
[1673549316066,65.44,16.507,16.488,18.75725104]
[1673549316278,108.9984,16.506,16.488,23.50404104]
[1673549316473,45.45,16.505,16.489,20.0]
[1673549316674,20.0,16.513,16.49,25.02]
[1673549317010,20.0,16.513,16.491,4.74592]
[1673549317247,20.0,16.513,16.491,54.69827568]
[1673549317435,45.43,16.512,16.492,38.75725104]
[1673549317744,45.43,16.512,16.494,20.0]
[1673549317937,20.0,16.511,16.495,37.0]
[1673549318147,45.43,16.51,16.495,20.0]
[1673549318381,20.0,16.509,16.495,20.0]
[1673549318568,65.44,16.508,16.491,31.19510464]
[1673549318784,65.44,16.508,16.489,43.35376898]
[1673549319318,20.0,16.507,16.489,43.35376898]
[1673549319531,45.44,16.506,16.489,43.35376898]
[1673549319753,165.353,16.506,16.489,43.35376898]
[1673549319957,20.0,16.505,16.489,43.35376898]
[1673549320141,45.45,16.504,16.489,43.35376898]
[1673549320347,45.45,16.504,16.49,17.0]
[1673549322045,45.45,16.504,16.485,119.0909]
[1673549322262,0.0797785,16.49,16.485,119.0909]
[1673549322458,0.0797785,16.49,16.486,20.0]
[1673549323301,0.0797785,16.49,16.482,20.0]
[1673549323532,0.0797785,16.49,16.483,20.0]
[1673549324558,0.0797785,16.49,16.484,17.0]
[1673549324788,0.0797785,16.49,16.485,20.0]
[1673549325090,0.0797785,16.49,16.486,17.0]
[1673549325521,0.0797785,16.49,16.485,20.0]
[1673549325728,0.0797785,16.49,16.481,128.6506]
[1673549326045,0.0797785,16.49,16.479,18.75725104]
[1673549326456,0.0797785,16.49,16.475,20.0]
[1673549326667,24.8497785,16.49,16.475,20.0]
[1673549328446,24.8497785,16.49,16.478,20.0]
[1673549328872,24.8497785,16.49,16.479,17.0]
[1673549329938,0.0797785,16.49,16.479,17.0]
[1673549330123,0.0797785,16.49,16.481,20.0]
[1673549330338,0.0797785,16.49,16.482,17.0]
[1673549334248,0.0797785,16.49,16.484,20.0]
[1673549334466,0.0797785,16.49,16.485,37.0]
[1673549334653,0.0797785,16.49,16.485,55.75725104]
[1673549335074,0.0797785,16.49,16.486,18.75725104]
[1673549335283,0.0797785,16.49,16.487,20.0]
[1673549335498,0.0797785,16.49,16.487,37.0]
[1673549336759,0.0797785,16.49,16.471,20.0]
[1673549336978,0.0797785,16.49,16.476,118.2696]
[1673549337178,0.0797785,16.49,16.478,18.75725104]
[1673549337606,0.0797785,16.49,16.479,38.75725104]
[1673549338347,0.0797785,16.49,16.48,17.0]
[1673549338570,0.0797785,16.49,16.479,38.75725104]
[1673549338753,0.0797785,16.49,16.479,20.0]
[1673549339400,0.0797785,16.49,16.479,38.75725104]
[1673549340013,0.0797785,16.49,16.48,17.0]
[1673549340222,0.0797785,16.49,16.481,26.6688]
[1673549340429,0.0797785,16.49,16.482,17.0]
[1673549340639,0.0797785,16.49,16.483,20.0]
[1673549340850,0.0797785,16.49,16.485,20.0]
[1673549341059,0.0797785,16.49,16.486,17.0]
[1673549341289,0.0797785,16.49,16.486,37.0]
[1673549342435,20.0,16.5,16.486,55.75725104]
[1673549342646,45.45,16.503,16.487,20.0]
[1673549342862,153.6113,16.505,16.488,17.0]
[1673549343076,20.0,16.504,16.489,20.0]
[1673549343293,20.0,16.504,16.49,17.0]
[1673549344754,24.79,16.5,16.486,20.0]
[1673549344974,45.46,16.499,16.484,18.75725104]
[1673549345291,20.0,16.498,16.485,20.0]
[1673549345692,20.0,16.498,16.482,20.0]
[1673549346448,45.47,16.497,16.482,20.0]
[1673549346662,20.0,16.496,16.482,20.0]
[1673549347393,20.0,16.496,16.483,17.0]
[1673549347612,20.0,16.496,16.484,20.0]
[1673549348141,20.0,16.496,16.479,38.75725104]
[1673549348142,40.0,16.496,16.471,20.0]
[1673549348335,45.47,16.495,16.478,132.59115104]
[1673549348540,20.0,16.494,16.478,132.59115104]
[1673549349497,45.47,16.495,16.478,132.59115104]
[1673549349911,45.47,16.496,16.479,20.0]
[1673549350236,45.47,16.496,16.48,18.75725104]
[1673549350560,45.47,16.496,16.479,20.0]
[1673549350759,20.0,16.495,16.48,17.0]
[1673549351382,20.0,16.495,16.48,35.75725104]
[1673549351804,20.0,16.493,16.478,113.8339]
[1673549352013,20.0,16.493,16.473,139.9918]
[1673549352236,20.0,16.493,16.476,20.0]
[1673549353388,20.0,16.493,16.477,17.0]
[1673549353598,20.0,16.493,16.478,20.0]
[1673549353917,24.79,16.49,16.479,17.0]
[1673549354645,24.79,16.49,16.478,20.0]
[1673549354863,24.79,16.49,16.475,20.0]
[1673549355081,20.0,16.489,16.475,20.0]
[1673549355479,20.0,16.489,16.474,20.0]
[1673549355915,20.0,16.489,16.475,17.0]
[1673549356124,20.0,16.489,16.476,20.0]
[1673549356326,20.0,16.489,16.477,17.0]
[1673549356546,24.79,16.49,16.477,17.0]
[1673549356745,24.79,16.49,16.478,20.0]
[1673549356974,24.79,16.49,16.479,17.0]
[1673549357166,24.79,16.49,16.479,35.75725104]
[1673549357714,65.47,16.496,16.48,18.75725104]
[1673549357900,65.47,16.496,16.481,17.0]
[1673549358322,20.0,16.496,16.481,17.0]
[1673549358659,20.0,16.496,16.481,35.75725104]
[1673549359181,202.3,16.496,16.481,17.0]
[1673549359498,20.0,16.494,16.478,20.0]
[1673549359809,24.79,16.49,16.476,20.0]
[1673549360026,24.79,16.49,16.473,139.9918]
[1673549360027,20.0,16.489,16.474,20.0]
[1673549362020,20.0,16.489,16.475,17.0]
[1673549362235,24.79,16.49,16.476,40.0]
[1673549362460,24.79,16.49,16.477,17.0]
[1673549362764,24.79,16.49,16.478,20.0]
[1673549362972,24.79,16.49,16.479,17.0]
[1673549363707,20.0,16.489,16.479,17.0]
[1673549364965,24.79,16.49,16.479,17.0]
[1673549366001,20.0,16.489,16.479,17.0]
[1673549366440,20.0,16.489,16.478,20.0]
[1673549366754,20.0,16.489,16.476,20.0]
[1673549366960,20.0,16.489,16.477,17.0]
[1673549367162,20.0,16.489,16.478,20.0]
[1673549368326,20.0,16.489,16.474,20.0]
[1673549368327,45.48,16.491,16.479,17.0]
[1673549368644,65.47,16.495,16.479,17.0]
[1673549368959,20.0,16.492,16.479,17.0]
[1673549370215,20.0,16.492,16.475,38.75725104]
[1673549371166,20.0,16.492,16.475,20.0]
[1673549371477,17.0,16.491,16.474,20.0]
[1673549371690,20.0,16.489,16.474,20.0]
[1673549372623,20.0,16.489,16.475,17.0]
[1673549372827,20.0,16.489,16.476,20.0]
[1673549373242,20.0,16.489,16.477,17.0]
[1673549373452,62.18,16.49,16.478,20.0]
[1673549373685,45.48,16.491,16.478,20.0]
[1673549373893,45.48,16.493,16.479,17.0]
[1673549374844,20.0,16.492,16.479,17.0]
[1673549375054,45.48,16.494,16.479,17.0]
[1673549375261,65.47,16.495,16.479,17.0]
[1673549375999,20.0,16.495,16.479,17.0]
[1673549378191,45.47,16.496,16.479,35.75725104]
[1673549378817,45.47,16.496,16.479,17.0]
[1673549379557,45.47,16.496,16.479,37.0]
[1673549380707,45.47,16.496,16.48,36.61]
[1673549380922,109.5786,16.497,16.481,20.0]
[1673549381155,109.5786,16.497,16.482,20.0]
[1673549381348,109.5786,16.497,16.483,17.0]
[1673549381566,109.5786,16.497,16.484,20.0]
[1673549381882,109.5786,16.497,16.486,20.0]
[1673549382286,109.5786,16.497,16.487,20.0]
[1673549382505,45.45,16.502,16.487,37.0]
[1673549382702,45.45,16.503,16.488,20.0]
[1673549382913,111.3011,16.504,16.488,20.0]
[1673549383361,111.3011,16.504,16.489,17.0]
[1673549383753,65.45,16.503,16.487,20.0]
[1673549384176,45.45,16.503,16.489,20.0]
[1673549384606,45.45,16.503,16.49,17.0]
[1673549386074,111.3011,16.504,16.49,17.0]
[1673549386517,111.3011,16.504,16.488,20.0]
[1673549386721,20.0,16.503,16.489,17.0]
[1673549387042,45.45,16.502,16.487,20.0]
[1673549387248,45.45,16.502,16.488,17.0]
[1673549387459,20.0,16.501,16.487,17.0]
[1673549387774,45.46,16.5,16.488,20.0]
[1673549387984,20.0,16.501,16.488,20.0]
[1673549388177,45.46,16.5,16.489,17.0]
[1673549388388,45.46,16.5,16.49,17.0]
[1673549389135,20.0,16.499,16.487,20.0]
[1673549389347,45.46,16.498,16.482,20.0]
[1673549389543,20.0,16.497,16.482,20.0]
[1673549390378,20.0,16.497,16.483,17.0]
[1673549390589,20.0,16.496,16.479,39.89042529]
[1673549390804,45.47,16.495,16.476,109.1657]
[1673549391018,20.0,16.494,16.476,109.1657]
[1673549391228,45.48,16.493,16.476,109.1657]
[1673549391650,20.0,16.492,16.476,109.1657]
[1673549391869,45.48,16.491,16.476,109.1657]
[1673549392266,20.0,16.49,16.476,109.1657]
[1673549392502,20.0,16.49,16.477,20.0]
[1673549392709,20.0,16.49,16.478,17.0]
[1673549393333,45.49,16.489,16.478,17.0]
[1673549393545,20.0,16.488,16.478,17.0]
[1673549393972,20.0,16.488,16.477,20.0]
[1673549394495,45.49,16.489,16.477,20.0]
[1673549394709,45.48,16.491,16.472,20.0]
[1673549394909,134.6994,16.494,16.476,20.0]
[1673549394910,20.0,16.492,16.476,20.0]
[1673549395110,45.48,16.491,16.477,20.0]
[1673549395845,45.48,16.491,16.478,18.75725104]
[1673549396052,45.48,16.493,16.478,18.75725104]
[1673549396938,45.48,16.493,16.479,17.0]
[1673549398487,20.0,16.492,16.479,17.0]
[1673549398711,20.0,16.49,16.477,20.0]
[1673549398921,45.48,16.491,16.478,17.0]
[1673549399125,45.48,16.493,16.478,35.75725104]
[1673549399454,45.48,16.493,16.478,17.0]
[1673549399763,20.0,16.492,16.476,20.0]
[1673549399957,45.48,16.493,16.477,37.0]
[1673549400171,45.48,16.493,16.478,20.0]
[1673549400381,45.48,16.493,16.479,17.0]
[1673549401549,45.48,16.493,16.48,17.0]
[1673549401950,45.48,16.493,16.477,20.0]
[1673549402156,45.48,16.493,16.47,131.67132529]
[1673549402157,227.78,16.493,16.473,20.0]
[1673549402369,227.78,16.493,16.47,76.55042529]
[1673549402370,227.78,16.493,16.472,20.0]
[1673549402602,20.0,16.492,16.473,20.0]
[1673549402797,62.48,16.491,16.473,20.0]
[1673549403006,62.48,16.491,16.472,20.0]
[1673549403216,20.0,16.49,16.472,20.0]
[1673549403442,45.49,16.489,16.473,20.0]
[1673549403843,45.49,16.489,16.472,20.0]
[1673549404492,20.0,16.488,16.472,20.0]
[1673549404685,45.49,16.487,16.472,20.0]
[1673549406380,45.49,16.487,16.473,17.0]
[1673549406592,45.49,16.489,16.474,20.0]
[1673549406800,20.0,16.488,16.475,17.0]
[1673549407117,45.49,16.487,16.476,20.0]
[1673549407317,45.49,16.487,16.477,17.0]
[1673549407553,45.49,16.489,16.477,17.0]
[1673549407766,45.48,16.492,16.478,20.0]
[1673549407980,45.48,16.493,16.478,20.0]
[1673549408388,20.0,16.492,16.479,17.0]
[1673549408719,45.48,16.491,16.479,17.0]
[1673549408929,20.0,16.49,16.479,17.0]
[1673549409557,45.48,16.491,16.479,17.0]
[1673549410597,65.48,16.492,16.479,17.0]
[1673549410811,45.48,16.492,16.479,17.0]
[1673549411231,45.48,16.493,16.479,17.0]
[1673549411446,20.0,16.492,16.479,17.0]
[1673549411762,45.48,16.491,16.479,17.0]
[1673549411973,45.48,16.493,16.479,17.0]
[1673549413003,45.48,16.493,16.479,35.75725104]
[1673549413213,114.6994,16.494,16.479,35.75725104]
[1673549413423,114.6994,16.494,16.48,20.0]
[1673549413746,45.47,16.495,16.48,55.48725104]
[1673549413960,109.5967,16.497,16.481,37.0]
[1673549414384,109.5967,16.497,16.482,20.0]
[1673549414709,109.5967,16.497,16.483,20.0]
[1673549415114,109.5967,16.497,16.482,20.0]
[1673549415753,109.5967,16.497,16.482,38.75725104]
[1673549415967,109.5967,16.497,16.483,20.0]
[1673549416574,109.5967,16.497,16.482,38.75725104]
[1673549417440,109.5967,16.497,16.483,20.0]
[1673549419424,109.5967,16.497,16.483,24.74823]
[1673549419635,109.5967,16.497,16.484,20.0]
[1673549421531,109.5967,16.497,16.483,24.74823]
[1673549421745,45.47,16.496,16.483,20.0]
[1673549422164,45.47,16.496,16.481,20.0]
[1673549423537,20.0,16.495,16.481,20.0]
[1673549423748,45.48,16.494,16.482,17.0]
[1673549423953,45.48,16.494,16.483,20.0]
[1673549424149,20.0,16.493,16.472,20.0]
[1673549424364,45.48,16.492,16.476,2.549]
[1673549424587,45.48,16.492,16.474,138.24265104]
[1673549424915,45.47,16.496,16.477,18.75725104]
[1673549425098,65.47,16.496,16.478,20.0]
[1673549425741,65.47,16.496,16.48,20.0]
[1673549425958,65.47,16.496,16.481,17.0]
[1673549426677,20.0,16.495,16.481,17.0]
[1673549426894,45.48,16.494,16.481,17.0]
[1673549427103,45.47,16.495,16.481,17.0]
[1673549429210,45.47,16.495,16.482,58.75725104]
[1673549429421,45.47,16.496,16.482,58.75725104]
[1673549429624,109.5967,16.497,16.482,58.75725104]
[1673549434575,45.46,16.5,16.483,18.75725104]
[1673549434765,45.45,16.504,16.484,21.92]
[1673549434975,45.46,16.5,16.485,20.0]
[1673549435201,83.67,16.51,16.486,21.92]
[1673549435202,45.45,16.504,16.486,21.92]
[1673549435516,45.45,16.505,16.487,20.0]
[1673549435720,45.45,16.505,16.488,20.0]
[1673549435932,20.0,16.504,16.488,20.0]
[1673549436262,20.0,16.502,16.488,20.0]
[1673549436461,45.46,16.501,16.488,20.0]
[1673549436657,45.45,16.503,16.486,20.0]
[1673549437287,45.45,16.503,16.487,1.92]
[1673549438058,45.45,16.503,16.486,24.74736]
[1673549438364,45.45,16.503,16.487,0.96]
[1673549438579,45.45,16.503,16.487,1.92]
[1673549438975,45.45,16.503,16.487,18.92]
[1673549439179,45.45,16.503,16.488,20.0]
[1673549439394,45.45,16.503,16.489,17.0]
[1673549439839,45.45,16.503,16.488,20.0]
[1673549440026,45.45,16.503,16.486,24.74736]
[1673549440970,20.0,16.504,16.486,24.74736]
[1673549441196,45.45,16.503,16.487,1.92]
[1673549441406,45.45,16.503,16.487,38.92]
[1673549442044,45.45,16.505,16.488,20.0]
[1673549442967,45.45,16.505,16.489,17.0]
[1673549443182,45.45,16.505,16.49,0.96]
[1673549443831,45.45,16.505,16.489,21.7465]
[1673549444144,45.45,16.505,16.489,4.7465]
[1673549444767,20.0,16.504,16.489,4.7465]
[1673549445092,45.45,16.503,16.485,20.0]
[1673549445515,20.0,16.502,16.485,20.0]
[1673549445727,45.46,16.501,16.485,20.0]
[1673549446150,45.45,16.503,16.485,20.0]
[1673549446339,20.0,16.502,16.485,20.0]
[1673549446555,45.46,16.501,16.485,20.0]
[1673549447191,20.0,16.5,16.485,20.0]
[1673549447407,45.46,16.499,16.486,17.0]
[1673549447616,45.46,16.499,16.487,20.0]
[1673549447824,45.46,16.499,16.488,17.0]
[1673549448239,45.46,16.5,16.488,17.0]
[1673549451933,45.45,16.505,16.489,21.92]
[1673549452319,45.45,16.505,16.49,17.0]
[1673549454548,119.913,16.506,16.491,40.67725104]
[1673549454752,45.42,16.514,16.492,20.0]
[1673549454967,153.5669,16.514,16.493,21.92]
[1673549455178,20.0,16.513,16.494,20.0]
[1673549455394,45.43,16.512,16.495,21.92]
[1673549455708,45.43,16.512,16.496,20.0]
[1673549456123,45.43,16.512,16.497,20.0]
[1673549456338,45.42,16.513,16.497,20.0]
[1673549457394,20.0,16.512,16.496,20.0]
[1673549457580,45.43,16.511,16.493,20.0]
[1673549457786,45.43,16.511,16.494,20.0]
[1673549458019,45.43,16.511,16.495,20.0]
[1673549458339,45.43,16.512,16.495,20.0]
[1673549459711,20.0,16.511,16.495,20.0]
[1673549460117,45.43,16.51,16.493,24.797]
[1673549462864,45.43,16.512,16.495,20.0]
[1673549463069,45.43,16.512,16.495,40.0]
[1673549463385,45.43,16.512,16.496,37.0]
[1673549463589,45.43,16.512,16.496,55.75725104]
[1673549463803,45.42,16.513,16.497,20.0]
[1673549464209,45.42,16.513,16.497,38.75725104]
[1673549464420,45.42,16.513,16.498,20.0]
[1673549464648,45.42,16.513,16.499,20.0]
[1673549465067,45.42,16.513,16.5,17.0]
[1673549465279,108.6054,16.515,16.501,15.25]
[1673549465470,108.6054,16.515,16.502,20.87914005]
[1673549465991,108.6054,16.515,16.504,1.1629585]
[1673549466197,108.6054,16.515,16.504,21.1629585]
[1673549467504,108.6054,16.515,16.505,20.0]
[1673549467677,108.6054,16.515,16.506,21.1629585]
[1673549468536,108.6054,16.515,16.507,17.0]
[1673549468845,108.6054,16.515,16.506,1.1629585]
[1673549468846,108.6054,16.515,16.508,20.0]
[1673549469054,108.6054,16.515,16.506,0.62307094]
[1673549469271,108.6054,16.515,16.505,20.0]
[1673549469463,108.6054,16.515,16.504,20.0]
[1673549471060,45.41,16.518,16.505,20.0]
[1673549471267,115.1294,16.519,16.506,0.75506008]
[1673549471581,45.4,16.523,16.506,40.18956216]
[1673549471774,157.8843,16.523,16.511,0.75506008]
[1673549472526,157.8843,16.523,16.511,19.51231112]
[1673549472835,157.8843,16.523,16.511,0.75506008]
[1673549473251,45.4,16.523,16.512,18.75725104]
[1673549473459,20.0,16.529,16.513,0.76482666]
[1673549473460,155.7388,16.527,16.513,0.76482666]
[1673549473781,45.4,16.523,16.513,0.76482666]
[1673549473977,45.4,16.523,16.511,0.80106076]
[1673549474396,45.4,16.523,16.511,19.5583118]
[1673549474611,45.39,16.526,16.512,40.0]
[1673549474821,45.39,16.526,16.513,1.18565976]
[1673549475053,110.3588,16.527,16.513,1.18565976]
[1673549475247,110.3588,16.527,16.513,19.9429108]
[1673549475456,110.3588,16.527,16.514,20.0]
[1673549475668,110.3588,16.527,16.515,21.18565976]
[1673549475874,45.38,16.53,16.515,19.9429108]
[1673549476091,45.37,16.532,16.516,20.0]
[1673549476305,45.37,16.532,16.517,1.18565976]
[1673549476734,20.0,16.531,16.517,1.18565976]
[1673549477054,45.38,16.53,16.515,1.18565976]
[1673549477246,45.38,16.53,16.511,63.80775862]
[1673549477247,359.9108,16.53,16.513,20.0]
[1673549477456,359.9108,16.53,16.508,20.0]
[1673549477685,20.0,16.528,16.508,20.0]
[1673549477998,20.0,16.528,16.507,118.4933]
[1673549477999,20.0,16.526,16.507,118.4933]
[1673549478216,45.39,16.525,16.507,118.4933]
[1673549478604,20.0,16.524,16.507,118.4933]
[1673549478930,45.4,16.523,16.504,63.80775862]
[1673549479135,163.4795,16.523,16.504,63.80775862]
[1673549479553,20.0,16.522,16.504,63.80775862]
[1673549479774,45.4,16.521,16.506,20.0]
[1673549479988,45.4,16.521,16.507,20.0]
[1673549480616,45.4,16.521,16.505,20.0]
[1673549481988,20.0,16.52,16.505,20.0]
[1673549482196,45.41,16.519,16.505,20.0]
[1673549482602,45.41,16.519,16.504,40.0]
[1673549482816,45.4,16.521,16.504,40.0]
[1673549483023,45.4,16.521,16.504,58.75725104]
[1673549483257,45.4,16.522,16.505,20.67725104]
[1673549483444,45.4,16.522,16.506,20.0]
[1673549483654,45.4,16.522,16.507,20.0]
[1673549484085,45.4,16.522,16.506,38.75725104]
[1673549484512,20.0,16.521,16.506,38.75725104]
[1673549484725,45.4,16.52,16.506,38.75725104]
[1673549485668,45.4,16.521,16.506,38.75725104]
[1673549486070,20.0,16.52,16.506,38.75725104]
[1673549486316,45.41,16.519,16.506,38.75725104]
[1673549486498,45.41,16.519,16.506,20.0]
[1673549486706,20.0,16.518,16.5,16.79]
[1673549486925,82.41,16.517,16.493,149.3078]
[1673549487137,20.0,16.515,16.497,18.75725104]
[1673549487335,45.42,16.514,16.497,18.75725104]
[1673549489434,45.42,16.514,16.495,68.55252862]
[1673549489435,45.42,16.514,16.495,83.08252862]
[1673549489646,45.42,16.514,16.497,20.0]
[1673549490100,45.42,16.514,16.498,38.75725104]
[1673549490716,45.42,16.514,16.499,18.75725104]
[1673549492503,20.0,16.513,16.499,18.75725104]
[1673549492719,45.43,16.512,16.499,18.75725104]
[1673549494920,45.42,16.514,16.499,18.75725104]
[1673549497130,20.0,16.513,16.498,20.0]
[1673549497340,20.0,16.511,16.496,20.0]
[1673549497574,45.43,16.51,16.496,20.0]
[1673549498188,45.43,16.51,16.497,20.0]
[1673549498379,45.43,16.512,16.498,20.0]
[1673549498591,45.43,16.512,16.498,38.75725104]
[1673549499349,45.42,16.513,16.499,20.0]
[1673549499663,45.42,16.514,16.499,20.0]
[1673549500500,45.42,16.514,16.499,38.75725104]
[1673549500929,45.42,16.514,16.5,16.68]
[1673549501112,115.5566,16.515,16.501,20.0]
[1673549501113,160.9766,16.515,16.501,20.0]
[1673549501350,115.5566,16.515,16.501,38.75725104]
[1673549501772,115.5566,16.515,16.502,18.75725104]
[1673549501978,115.5566,16.515,16.503,20.0]
[1673549502309,20.0,16.514,16.503,20.0]
[1673549502499,160.9766,16.515,16.503,20.0]
[1673549502712,115.5566,16.515,16.499,20.0]
[1673549503261,160.9766,16.515,16.499,38.75725104]
[1673549503456,160.9766,16.515,16.5,38.75725104]
[1673549503775,115.5566,16.515,16.501,20.0]
[1673549503977,115.5566,16.515,16.501,38.75725104]
[1673549504182,115.5566,16.515,16.502,18.75725104]
[1673549504393,115.5566,16.515,16.503,20.0]
[1673549504615,160.9766,16.515,16.503,20.0]
[1673549504832,45.4,16.521,16.504,20.67725104]
[1673549505025,20.0,16.522,16.506,20.0]
[1673549505237,45.4,16.521,16.507,20.0]